fUST/lending_fUST_20240926
["ID","MTS","AMOUNT","RATE_DAILY","PERIOD"]
[339197702,1727296235188,-1000.0,0.00018249,2]
[339197703,1727296235197,-1000.0,0.00018249,2]
[339197704,1727296235206,-1000.0,0.00018249,2]
[339197705,1727296235214,-1000.0,0.00018249,2]
[339197706,1727296235223,-1000.0,0.00018249,2]
[339197707,1727296235232,-1000.0,0.00018249,2]
[339197708,1727296235241,-1000.0,0.00018249,2]
[339197709,1727296235250,-1000.0,0.00018249,2]
[339197710,1727296235259,-1000.0,0.00018249,2]
[339197711,1727296235268,-1000.0,0.00018249,2]
[339197712,1727296235277,-1000.0,0.00018249,2]
[339197713,1727296235286,-1000.0,0.00018249,2]
[339197714,1727296235296,-1000.0,0.00018249,2]
[339197715,1727296235306,-1000.0,0.00018249,2]
[339197716,1727296235315,-1000.0,0.00018249,2]
[339197717,1727296235324,-1000.0,0.00018249,2]
[339197718,1727296235334,-1000.0,0.00018249,2]
[339197719,1727296235343,-1000.0,0.00018249,2]
[339197720,1727296235353,-1000.0,0.00018249,2]
[339197721,1727296235363,-1000.0,0.00018249,2]
[339197722,1727296235373,-1000.0,0.00018249,2]
[339197723,1727296235382,-1000.0,0.00018249,2]
[339197724,1727296235392,-1000.0,0.00018249,2]
[339197725,1727296235401,-1000.0,0.00018249,2]
[339197726,1727296235411,-1000.0,0.00018249,2]
[339197727,1727296235420,-1000.0,0.00018249,2]
[339197728,1727296235429,-1000.0,0.00018249,2]
[339197729,1727296235440,-1000.0,0.00018249,2]
[339197730,1727296235450,-1000.0,0.00018249,2]
[339197731,1727296235460,-1000.0,0.00018249,2]
[339197732,1727296235469,-1000.0,0.00018249,2]
[339197733,1727296235478,-151.0,0.00018249,2]
[339197734,1727296235488,-151.0,0.00018249,2]
[339197735,1727296235498,-193.962848,0.00018249,2]
[339197736,1727296235507,-151.0,0.00018249,2]
[339197737,1727296235516,-151.0,0.00018249,2]
[339197738,1727296235525,-166.543572,0.00018249,2]
[339197739,1727296235535,-166.543572,0.00018249,2]
[339197740,1727296235544,-166.543572,0.00018249,2]
[339197741,1727296235553,-166.543572,0.00018249,2]
[339197742,1727296235563,-9048.20499201,0.00018249,2]
[339197743,1727296235572,-151.0,0.0001825,2]
[339197744,1727296235582,-203.017723,0.0001825,2]
[339197745,1727296235592,-151.0,0.0001825,2]
[339197746,1727296235604,-151.0,0.0001825,2]
[339197747,1727296235614,-178.852709,0.0001825,2]
[339197748,1727296235623,-178.852709,0.0001825,2]
[339197749,1727296235633,-151.0,0.0001825,2]
[339197750,1727296235642,-151.0,0.0001825,2]
[339197751,1727296235651,-151.0,0.0001825,2]
[339197752,1727296235661,-588.967686,0.0001825,2]
[339197753,1727296235672,-588.967686,0.0001825,2]
[339197754,1727296235681,-151.0,0.0001825,2]
[339197755,1727296235690,-629.475163,0.0001825,2]
[339197756,1727296235700,-151.0,0.0001825,2]
[339197757,1727296235709,-150.20026653,0.0001825,2]
[339197758,1727296235725,-479.27489647,0.0001825,2]
[339197759,1727296235734,-151.0,0.0001825,2]
[339197760,1727296235743,-151.0,0.0001825,2]
[339197761,1727296235753,-5000.0,0.00018258,2]
[339197762,1727296235763,-151.0,0.00018258,2]
[339197763,1727296235772,-151.0,0.00018259,2]
[339197764,1727296235781,-151.049112,0.00018259,2]
[339197765,1727296235790,-151.0,0.00018259,2]
[339197766,1727296235800,-151.0,0.00018259,2]
[339197767,1727296235809,-151.0,0.00018259,2]
[339197768,1727296235818,-151.0,0.00018259,2]
[339197769,1727296235828,-151.0,0.00018259,2]
[339197770,1727296235837,-151.0,0.00018259,2]
[339197771,1727296235847,-151.0,0.00018259,2]
[339197772,1727296235856,-151.0,0.00018259,2]
[339197773,1727296235866,-151.0,0.00018259,2]
[339197774,1727296235875,-151.0,0.00018259,2]
[339197775,1727296235884,-151.0,0.00018259,2]
[339197776,1727296235893,-151.0,0.00018259,2]
[339197777,1727296235902,-151.0,0.00018259,2]
[339197778,1727296235912,-151.0,0.00018259,2]
[339197779,1727296235922,-151.0,0.00018259,2]
[339197780,1727296235931,-151.0,0.00018259,2]
[339197781,1727296235940,-240.04013,0.00018259,2]
[339197782,1727296235949,-151.0,0.00018259,2]
[339197783,1727296235958,-151.0,0.00018259,2]
[339197784,1727296235968,-151.0,0.00018259,2]
[339197785,1727296235977,-151.0,0.00018259,2]
[339197786,1727296235987,-1190.961065,0.00018259,2]
[339197787,1727296235996,-1190.961065,0.00018259,2]
[339197788,1727296236005,-1190.961065,0.00018259,2]
[339197789,1727296236015,-1190.961065,0.00018259,2]
[339197790,1727296236024,-1190.961065,0.00018259,2]
[339197791,1727296236034,-1190.961065,0.00018259,2]
[339197792,1727296236043,-151.0,0.00018259,2]
[339197793,1727296236053,-151.0,0.00018259,2]
[339197794,1727296236062,-151.0,0.00018259,2]
[339197795,1727296236072,-151.0,0.00018259,2]
[339197796,1727296236081,-203.017723,0.00018259,2]
[339197797,1727296236091,-177.968963,0.00018259,2]
[339197798,1727296236100,-177.968963,0.00018259,2]
[339197799,1727296236110,-177.968963,0.00018259,2]
[339197800,1727296236119,-177.968963,0.00018259,2]
[339197801,1727296236128,-177.968963,0.00018259,2]
[339197802,1727296236137,-177.968963,0.00018259,2]
[339197803,1727296236147,-151.0,0.00018259,2]
[339197804,1727296236156,-178.852709,0.00018259,2]
[339197805,1727296236166,-178.852709,0.00018259,2]
[339197806,1727296236176,-151.0,0.00018259,2]
[339197807,1727296236185,-151.0,0.00018259,2]
[339197808,1727296236194,-151.0,0.00018259,2]
[339197809,1727296236203,-588.967686,0.00018259,2]
[339197810,1727296236212,-588.967686,0.00018259,2]
[339197811,1727296236222,-151.0,0.00018259,2]
[339197812,1727296236232,-629.475163,0.00018259,2]
[339197813,1727296236241,-151.0,0.00018259,2]
[339197814,1727296236251,-629.475163,0.00018259,2]
[339197815,1727296236260,-253.903047,0.00018259,2]
[339197816,1727296236270,-253.903047,0.00018259,2]
[339197817,1727296236280,-253.903047,0.00018259,2]
[339197818,1727296236290,-253.903047,0.00018259,2]
[339197819,1727296236299,-253.903047,0.00018259,2]
[339197820,1727296236308,-253.903047,0.00018259,2]
[339197821,1727296236318,-151.0,0.00018259,2]
[339197822,1727296236326,-237.025709,0.00018259,2]
[339197823,1727296236336,-151.0,0.00018259,2]
[339197824,1727296236345,-151.0,0.00018259,2]
[339197825,1727296236354,-151.0,0.00018259,2]
[339197826,1727296236364,-321.747253,0.00018259,2]
[339197827,1727296236373,-321.747253,0.00018259,2]
[339197828,1727296236383,-321.747253,0.00018259,2]
[339197829,1727296236392,-321.747253,0.00018259,2]
[339197830,1727296236403,-321.747253,0.00018259,2]
[339197831,1727296236413,-321.747253,0.00018259,2]
[339197832,1727296236423,-151.0,0.00018259,2]
[339197833,1727296236432,-151.0,0.00018259,2]
[339197834,1727296236442,-151.0,0.00018259,2]
[339197835,1727296236451,-151.0,0.00018259,2]
[339197836,1727296236461,-255.341265,0.00018259,2]
[339197837,1727296236470,-255.341265,0.00018259,2]
[339197838,1727296236480,-255.341265,0.00018259,2]
[339197839,1727296236490,-151.0,0.00018259,2]
[339197840,1727296236500,-255.341265,0.00018259,2]
[339197841,1727296236510,-255.341265,0.00018259,2]
[339197842,1727296236520,-255.341265,0.00018259,2]
[339197843,1727296236529,-151.0,0.00018259,2]
[339197844,1727296236539,-156.846276,0.00018259,2]
[339197845,1727296236549,-284.716702,0.00018259,2]
[339197846,1727296236558,-284.716702,0.00018259,2]
[339197847,1727296236567,-284.716702,0.00018259,2]
[339197848,1727296236577,-284.716702,0.00018259,2]
[339197849,1727296236587,-284.716702,0.00018259,2]
[339197850,1727296236599,-284.716702,0.00018259,2]
[339197851,1727296236610,-151.0,0.00018259,2]
[339197852,1727296236619,-151.0,0.00018259,2]
[339197853,1727296236629,-151.0,0.00018259,2]
[339197854,1727296236638,-151.0,0.00018259,2]
[339197855,1727296236647,-151.0,0.00018259,2]
[339197856,1727296236658,-151.0,0.00018259,2]
[339197857,1727296236667,-151.0,0.00018259,2]
[339197858,1727296236680,-151.0,0.00018259,2]
[339197859,1727296236689,-166.543572,0.00018259,2]
[339197860,1727296236698,-166.543572,0.00018259,2]
[339197861,1727296236709,-166.543572,0.00018259,2]
[339197862,1727296236718,-166.543572,0.00018259,2]
[339197863,1727296236727,-166.543572,0.00018259,2]
[339197864,1727296236737,-166.543572,0.00018259,2]
[339197865,1727296236746,-166.543572,0.00018259,2]
[339197866,1727296236756,-166.543572,0.00018259,2]
[339197867,1727296236765,-151.0,0.0001826,2]
[339197868,1727296236774,-151.0,0.0001826,2]
[339197869,1727296236784,-151.0,0.0001826,2]
[339197870,1727296236794,-151.0,0.0001826,2]
[339197871,1727296236803,-151.0,0.0001826,2]
[339197872,1727296236813,-151.0,0.0001826,2]
[339197873,1727296236823,-151.0,0.0001826,2]
[339197874,1727296236832,-151.0,0.0001826,2]
[339197875,1727296236841,-152.262752,0.0001826,2]
[339197876,1727296236851,-1190.961065,0.0001826,2]
[339197877,1727296236860,-1190.961065,0.0001826,2]
[339197878,1727296236870,-1190.961065,0.0001826,2]
[339197879,1727296236879,-1190.961065,0.0001826,2]
[339197880,1727296236889,-151.0,0.0001826,2]
[339197881,1727296236898,-171.663762,0.0001826,2]
[339197882,1727296236908,-177.968963,0.0001826,2]
[339197883,1727296236918,-177.968963,0.0001826,2]
[339197884,1727296236927,-177.968963,0.0001826,2]
[339197885,1727296236937,-177.968963,0.0001826,2]
[339197886,1727296236946,-151.0,0.0001826,2]
[339197887,1727296236955,-588.967686,0.0001826,2]
[339197888,1727296236965,-588.967686,0.0001826,2]
[339197889,1727296236974,-151.0,0.0001826,2]
[339197890,1727296236984,-629.475163,0.0001826,2]
[339197891,1727296236993,-151.0,0.0001826,2]
[339197892,1727296237003,-629.475163,0.0001826,2]
[339197893,1727296237013,-151.0,0.0001826,2]
[339197894,1727296237023,-151.0,0.0001826,2]
[339197895,1727296237032,-9048.20499201,0.0001826,2]
[339197896,1727296237042,-3016.06833067,0.00018269,2]
[339197897,1727296237052,-151.852091,0.00018269,2]
[339197898,1727296237061,-583.008115,0.00018269,2]
[339197899,1727296237071,-583.008115,0.00018269,2]
[339197900,1727296237080,-219.102997,0.00018269,2]
[339197901,1727296237090,-151.0,0.00018269,2]
[339197902,1727296237099,-151.0,0.00018269,2]
[339197903,1727296237109,-151.0,0.00018269,2]
[339197904,1727296237118,-151.0,0.00018269,2]
[339197905,1727296237128,-230.03,0.00018269,2]
[339197906,1727296237137,-151.0,0.00018269,2]
[339197907,1727296237146,-151.0,0.00018269,2]
[339197908,1727296237155,-151.0,0.00018269,2]
[339197909,1727296237165,-151.0,0.00018269,2]
[339197910,1727296237175,-203.017723,0.00018269,2]
[339197911,1727296237184,-151.0,0.00018269,2]
[339197912,1727296237194,-178.852709,0.00018269,2]
[339197913,1727296237203,-178.852709,0.00018269,2]
[339197914,1727296237213,-151.0,0.00018269,2]
[339197915,1727296237223,-151.0,0.00018269,2]
[339197916,1727296237232,-151.0,0.0001827,2]
[339197917,1727296237242,-151.0,0.0001827,2]
[339197918,1727296237251,-247.737851,0.0001827,2]
[339197919,1727296237260,-583.008115,0.0001827,2]
[339197920,1727296237270,-583.008115,0.0001827,2]
[339197921,1727296237280,-583.008115,0.0001827,2]
[339197922,1727296237290,-583.008115,0.0001827,2]
[339197923,1727296237300,-183.765543,0.0001827,2]
[339197924,1727296237309,-183.765543,0.0001827,2]
[339197925,1727296237318,-151.0,0.0001827,2]
[339197926,1727296237328,-151.0,0.0001827,2]
[339197927,1727296237338,-151.0,0.0001827,2]
[339197928,1727296237347,-151.0,0.0001827,2]
[339197929,1727296237357,-151.0,0.0001827,2]
[339197930,1727296237366,-151.0,0.0001827,2]
[339197931,1727296237376,-1190.961065,0.0001827,2]
[339197932,1727296237385,-1190.961065,0.0001827,2]
[339197933,1727296237394,-1190.961065,0.0001827,2]
[339197934,1727296237403,-1190.961065,0.0001827,2]
[339197935,1727296237413,-177.968963,0.0001827,2]
[339197936,1727296237423,-177.968963,0.0001827,2]
[339197937,1727296237433,-177.968963,0.0001827,2]
[339197938,1727296237442,-177.968963,0.0001827,2]
[339197939,1727296237452,-234.22142,0.0001827,2]
[339197940,1727296237461,-588.967686,0.0001827,2]
[339197941,1727296237471,-588.967686,0.0001827,2]
[339197942,1727296237482,-151.0,0.0001827,2]
[339197943,1727296237491,-629.475163,0.0001827,2]
[339197944,1727296237501,-224.55216,0.0001827,2]
[339197945,1727296237510,-629.475163,0.0001827,2]
[339197946,1727296237520,-253.903047,0.0001827,2]
[339197947,1727296237656,-253.903047,0.0001827,2]
[339197948,1727296237668,-253.903047,0.0001827,2]
[339197949,1727296237677,-253.903049,0.0001827,2]
[339197950,1727296237687,-151.0,0.0001827,2]
[339197951,1727296237696,-151.0,0.0001827,2]
[339197952,1727296237705,-321.747253,0.0001827,2]
[339197953,1727296237714,-321.747253,0.0001827,2]
[339197954,1727296237723,-321.747253,0.0001827,2]
[339197955,1727296237732,-321.747249,0.0001827,2]
[339197956,1727296237741,-151.0,0.0001827,2]
[339197957,1727296237751,-151.0,0.0001827,2]
[339197958,1727296237761,-151.0,0.0001827,2]
[339197959,1727296237770,-255.341265,0.0001827,2]
[339197960,1727296237780,-255.341265,0.0001827,2]
[339197961,1727296237789,-151.0,0.0001827,2]
[339197962,1727296237799,-255.341265,0.0001827,2]
[339197963,1727296237809,-255.341264,0.0001827,2]
[339197964,1727296237818,-284.716702,0.0001827,2]
[339197965,1727296237827,-284.716702,0.0001827,2]
[339197966,1727296237837,-284.716702,0.0001827,2]
[339197967,1727296237846,-284.716694,0.0001827,2]
[339197968,1727296237856,-151.0,0.0001827,2]
[339197969,1727296237866,-151.0,0.0001827,2]
[339197970,1727296237876,-166.543572,0.0001827,2]
[339197971,1727296237885,-166.543572,0.0001827,2]
[339197972,1727296237895,-6032.13666134,0.0001827,2]
[339197973,1727296237905,-196.1748858,0.00018273,2]
[339197974,1727296237914,-600.49251769,0.00018273,2]
[339197975,1727296237923,-196.63194089,0.00018273,2]
[339197976,1727296237932,-500.0,0.00018273,2]
[339197977,1727296237942,-583.008115,0.00018273,2]
[339197978,1727296237952,-583.008115,0.00018273,2]
[339197979,1727296237962,-151.0,0.00018273,2]
[339197980,1727296237972,-151.0,0.00018273,2]
[339197981,1727296237981,-178.852709,0.00018273,2]
[339197982,1727296237991,-178.852709,0.00018273,2]
[339197983,1727296238000,-151.0,0.00018273,2]
[339197984,1727296238010,-151.0,0.00018273,2]
[339197985,1727296238020,-151.0,0.00018278,2]
[339197986,1727296238029,-203.017723,0.00018278,2]
[339197987,1727296238039,-151.0,0.00018278,2]
[339197988,1727296238048,-151.0,0.00018279,2]
[339197989,1727296238057,-151.0,0.00018279,2]
[339197990,1727296238067,-151.0,0.00018279,2]
[339197991,1727296238077,-151.0,0.00018279,2]
[339197992,1727296238086,-227.443792,0.00018279,2]
[339197993,1727296238097,-151.0,0.0001828,2]
[339197994,1727296238107,-151.0,0.0001828,2]
[339197995,1727296238116,-151.0,0.0001828,2]
[339197996,1727296238126,-151.0,0.0001828,2]
[339197997,1727296238136,-151.0,0.0001828,2]
[339197998,1727296238145,-151.0,0.0001828,2]
[339197999,1727296238156,-151.0,0.0001828,2]
[339198000,1727296238167,-151.0,0.0001828,2]
[339198001,1727296238177,-151.0,0.0001828,2]
[339198002,1727296238186,-276.277042,0.0001828,2]
[339198004,1727296238195,-151.0,0.0001828,2]
[339198006,1727296238205,-151.0,0.0001828,2]
[339198008,1727296238215,-583.008115,0.0001828,2]
[339198010,1727296238224,-583.008115,0.0001828,2]
[339198011,1727296238233,-583.008115,0.0001828,2]
[339198012,1727296238242,-583.008115,0.0001828,2]
[339198013,1727296238251,-151.0,0.0001828,2]
[339198014,1727296238260,-151.0,0.0001828,2]
[339198015,1727296238269,-151.0,0.0001828,2]
[339198016,1727296238279,-183.765543,0.0001828,2]
[339198017,1727296238289,-183.765543,0.0001828,2]
[339198018,1727296238298,-183.765543,0.0001828,2]
[339198019,1727296238308,-183.765543,0.0001828,2]
[339198020,1727296238317,-151.0,0.0001828,2]
[339198021,1727296238327,-151.0,0.0001828,2]
[339198023,1727296238336,-192.17463,0.0001828,2]
[339198025,1727296238346,-151.0,0.0001828,2]
[339198027,1727296238357,-151.0,0.0001828,2]
[339198029,1727296238367,-151.0,0.0001828,2]
[339198030,1727296238376,-222.223246,0.0001828,2]
[339198031,1727296238385,-151.0,0.0001828,2]
[339198032,1727296238395,-151.0,0.0001828,2]
[339198033,1727296238405,-151.0,0.0001828,2]
[339198034,1727296238414,-158.964394,0.0001828,2]
[339198035,1727296238424,-151.0,0.0001828,2]
[339198036,1727296238433,-151.0,0.0001828,2]
[339198037,1727296238443,-151.0,0.0001828,2]
[339198038,1727296238454,-151.0,0.0001828,2]
[339198039,1727296238463,-151.0,0.0001828,2]
[339198040,1727296238473,-1190.961065,0.0001828,2]
[339198041,1727296238482,-1190.961065,0.0001828,2]
[339198042,1727296238492,-1190.961065,0.0001828,2]
[339198043,1727296238502,-1190.961058,0.0001828,2]
[339198044,1727296238511,-151.0,0.0001828,2]
[339198045,1727296238521,-203.017723,0.0001828,2]
[339198046,1727296238531,-177.968963,0.0001828,2]
[339198047,1727296238540,-177.968963,0.0001828,2]
[339198048,1727296238550,-177.968963,0.0001828,2]
[339198049,1727296238563,-177.968967,0.0001828,2]
[339198050,1727296238573,-151.0,0.0001828,2]
[339198051,1727296238583,-178.852709,0.0001828,2]
[339198052,1727296238596,-178.852709,0.0001828,2]
[339198053,1727296238607,-151.0,0.0001828,2]
[339198054,1727296238618,-151.0,0.0001828,2]
[339198055,1727296238627,-588.967686,0.0001828,2]
[339198056,1727296238636,-588.967686,0.0001828,2]
[339198057,1727296238645,-151.0,0.0001828,2]
[339198058,1727296238655,-629.475163,0.0001828,2]
[339198059,1727296238664,-629.475163,0.0001828,2]
[339198060,1727296238673,-151.0,0.0001828,2]
[339198061,1727296238682,-151.0,0.0001828,2]
[339198062,1727296238691,-151.0,0.00018288,2]
[339198063,1727296238700,-151.0,0.00018288,2]
[339198064,1727296238709,-151.0,0.00018288,2]
[339198065,1727296238719,-151.0,0.00018288,2]
[339198066,1727296238729,-205.248771,0.0001829,2]
[339198067,1727296238742,-205.248771,0.0001829,2]
[339198068,1727296238752,-205.248771,0.0001829,2]
[339198069,1727296238762,-205.248771,0.0001829,2]
[339198070,1727296238771,-151.0,0.0001829,2]
[339198071,1727296238781,-151.0,0.0001829,2]
[339198072,1727296238790,-151.0,0.0001829,2]
[339198073,1727296238800,-254.09516,0.0001829,2]
[339198074,1727296238809,-151.0,0.0001829,2]
[339198075,1727296238819,-151.0,0.0001829,2]
[339198076,1727296238829,-286.843106,0.0001829,2]
[339198077,1727296238838,-583.008115,0.0001829,2]
[339198078,1727296238847,-583.008115,0.0001829,2]
[339198079,1727296238857,-183.765543,0.0001829,2]
[339198080,1727296238867,-183.765543,0.0001829,2]
[339198081,1727296238876,-151.0,0.0001829,2]
[339198082,1727296238885,-151.0,0.0001829,2]
[339198083,1727296238895,-151.0,0.0001829,2]
[339198084,1727296238905,-588.967686,0.0001829,2]
[339198085,1727296238915,-588.967686,0.0001829,2]
[339198086,1727296238924,-151.0,0.0001829,2]
[339198087,1727296238933,-629.475163,0.0001829,2]
[339198088,1727296238943,-629.475163,0.0001829,2]
[339198089,1727296238953,-151.0,0.0001829,2]
[339198090,1727296238963,-243.534641,0.0001829,2]
[339198091,1727296238972,-38878.93390955,0.000183,2]
[339198092,1727296239085,-2533.2,0.000183,2]
[339198093,1727296239548,171.741517,0.00016387,2]
[339198094,1727296239673,-600.30958382,0.00017579,2]
[339198095,1727296239686,-616.69041618,0.00017579,2]
[339198096,1727296239694,-500.0,0.00018149,2]
[339198097,1727296239703,-500.0,0.00018149,2]
[339198098,1727296239713,-500.0,0.00018149,2]
[339198099,1727296239722,-500.0,0.00018149,2]
[339198100,1727296239731,-500.0,0.00018149,2]
[339198101,1727296239741,-500.0,0.00018149,2]
[339198102,1727296239750,-285.44363601,0.00018149,2]
[339198103,1727296239760,-500.0,0.00018149,2]
[339198104,1727296239769,-500.0,0.00018149,2]
[339198105,1727296239778,-500.0,0.00018149,2]
[339198106,1727296239787,-500.0,0.00018149,2]
[339198107,1727296239796,-500.0,0.00018149,2]
[339198108,1727296239805,-500.0,0.00018149,2]
[339198109,1727296239814,-500.0,0.00018149,2]
[339198110,1727296239825,-500.0,0.00018149,2]
[339198111,1727296239834,-500.0,0.00018149,2]
[339198112,1727296239843,-500.0,0.00018149,2]
[339198113,1727296239852,-500.0,0.00018149,2]
[339198114,1727296239862,-510.24749069,0.00018149,2]
[339198115,1727296239871,-500.0,0.00018149,2]
[339198116,1727296239880,-500.0,0.00018149,2]
[339198117,1727296239889,-500.0,0.00018149,2]
[339198118,1727296239899,-500.0,0.00018149,2]
[339198119,1727296239908,-500.0,0.00018149,2]
[339198120,1727296239918,-500.0,0.00018149,2]
[339198121,1727296239926,-26289.33137448,0.000183,2]
[339198122,1727296239942,-12950.43594413,0.000183,2]
[339198123,1727296239953,-4668.44185211,0.000183,2]
[339198126,1727296240638,-1258.2,0.000183,2]
[339198127,1727296240697,-3234.8903918,0.000183,2]
[339198151,1727296246614,-6333.0,0.000183,2]
[339198154,1727296303430,42.55211519,0.00013014,2]
[339198155,1727296303452,181.70625214,0.00013014,2]
[339198156,1727296303472,169.38264167,0.00013014,2]
[339198165,1727296879645,347.02529,0.00013014,2]
[339198166,1727297136143,-998.67033,0.0001593,2]
[339198167,1727297138106,-1135.28489819,0.0001593,2]
[339198168,1727297245126,-766.04477181,0.0001593,2]
[339198169,1727297245148,-67.30757558,0.00016443,2]
[339198170,1727297248129,-133.97170373,0.00016443,2]
[339198171,1727297248151,-383.89,0.000167,2]
[339198172,1727297248172,-530.61457304,0.00016864,2]
[339198174,1727297290536,305.37,0.00010959,2]
[339198189,1727297431769,-1230.6595009,0.00015848,2]
[339198190,1727297431780,-1397.09583457,0.00016754,2]
[339198227,1727297438047,-1989.11764468,0.00016754,2]
[339198229,1727297438058,-300.0,0.00016778,2]
[339198231,1727297438067,-300.0,0.00016778,2]
[339198233,1727297438076,-238.17715132,0.00016779,2]
[339198309,1727297445931,-261.82284868,0.00016779,2]
[339198310,1727297445942,-77.88981646,0.00016779,2]
[339198311,1727297486648,181.70625214,0.00010959,2]
[339198312,1727297486669,195.41374786,0.00010959,2]
[339198314,1727297512877,39.42467036,0.00013014,2]
[339198315,1727297512901,317.18302464,0.00013014,2]
[339198320,1727298081642,338.77731,0.00013014,2]
[339198323,1727298341161,-166.6666678,0.00015598,2]
[339198324,1727298341182,-82.76182202,0.000156,2]
[339198325,1727298352122,-167.23817798,0.000156,2]
[339198326,1727298352144,-423.72657011,0.00015769,2]
[339198327,1727298434122,-552.50408105,0.00015769,2]
[339198328,1727298440111,-298.138362,0.00015709,2]
[339198329,1727298440134,-273.97542133,0.00015769,2]
[339198330,1727298452113,-267.67539833,0.00015769,2]
[339198331,1727298569113,-734.8246734,0.00015675,2]
[339198465,1727298642955,-7146.18197968,0.00016528,2]
[339198466,1727298642965,-300.0,0.00016651,2]
[339198467,1727298642974,-300.0,0.00016651,2]
[339198468,1727298642984,-534.35990473,0.0001673,2]
[339198469,1727298642993,-66030.29287194,0.0001673,2]
[339198470,1727298643002,-15289.0292104,0.0001673,2]
[339198471,1727298643011,-71560.7661682,0.00016731,2]
[339198472,1727298643021,-64815.5104662,0.00016731,2]
[339198473,1727298643030,-151.0,0.0001676,2]
[339198474,1727298643040,-151.0,0.0001676,2]
[339198475,1727298643049,-269.300908,0.0001676,2]
[339198476,1727298643059,-151.0,0.0001676,2]
[339198477,1727298643068,-151.0,0.0001676,2]
[339198478,1727298643078,-219.96996403,0.00016769,2]
[339198479,1727298643087,-155.86554302,0.00016769,2]
[339198480,1727298643097,-484.75076961,0.00016769,2]
[339198481,1727298643107,-500.0,0.00016769,2]
[339198482,1727298643119,-151.0,0.0001677,2]
[339198483,1727298643128,-151.0,0.0001677,2]
[339198484,1727298643138,-110981.18710325,0.0001677,2]
[339198506,1727298645940,-32140.34523275,0.0001677,2]
[339198507,1727298645949,-8347.23840326,0.0001677,2]
[339198508,1727298697999,212.45220363,0.0001577,2]
[339198510,1727298743273,224.95949686,0.00013014,2]
[339198511,1727298743297,117.63366114,0.00013014,2]
[339198518,1727299291355,325.4635,0.00013014,2]
[339198520,1727299502516,50000.0,0.00013,2]
[339198521,1727299522240,50000.0,0.000131,2]
[339198522,1727299529826,440.24994254,0.000136,2]
[339198523,1727299540148,-500.0,0.00014594,2]
[339198524,1727299540169,-298.138362,0.00015384,2]
[339198525,1727299540189,-90.26225634,0.00015642,2]
[339198526,1727299556099,-83.52072086,0.00015642,2]
[339198527,1727299556122,-169.060871,0.00015666,2]
[339198528,1727299556145,-169.060871,0.00015757,2]
[339198529,1727299556168,-169.060871,0.00015847,2]
[339198530,1727299556189,-166.0176967,0.00015918,2]
[339198531,1727299556211,-169.060871,0.00015938,2]
[339198532,1727299556235,-169.060871,0.00016029,2]
[339198533,1727299556258,-169.060871,0.00016119,2]
[339198534,1727299556281,-169.060871,0.0001621,2]
[339198535,1727299556304,-169.060871,0.00016301,2]
[339198536,1727299556326,-169.060871,0.00016392,2]
[339198537,1727299556350,-37.47985773,0.00016482,2]
[339198540,1727299630115,-500.0,0.00014594,2]
[339198541,1727299630138,-131.58101327,0.00016482,2]
[339198542,1727299630160,-1276.73158713,0.00016657,2]
[339198543,1727299633114,-1957.93266161,0.00016657,2]
[339198545,1727299765118,-235.0,0.00014594,2]